bitfinex-derivatives/quotes_BTCF0:USTF0_20251011
["timestamp","ask_amount","ask_price","bid_price","bid_amount"]
[1760203073323,0.1251914,112070.0,112060.0,0.0214]
[1760203073517,0.1251914,112070.0,112060.0,0.47232603]
[1760203074022,0.1241914,112070.0,112060.0,0.47232603]
[1760203074724,0.1241914,112070.0,112060.0,0.48138782]
[1760203074920,0.1241914,112070.0,112060.0,0.48238782]
[1760203076727,0.19650947,112070.0,112060.0,0.48238782]
[1760203077228,0.19650947,112070.0,112060.0,0.49607782]
[1760203077424,0.19650947,112070.0,112060.0,0.48238782]
[1760203078028,0.55730947,112070.0,112060.0,0.48238782]
[1760203080024,0.19650947,112070.0,112060.0,0.48238782]
[1760203080531,0.09551807,112070.0,112060.0,0.94603532]
[1760203083335,0.07231807,112070.0,112060.0,1.79696135]
[1760203083631,0.1123338,112090.0,112080.0,0.03509]
[1760203083930,0.1123338,112090.0,112080.0,0.93694206]
[1760203085930,0.1251738,112090.0,112080.0,0.93694206]
[1760203086233,0.4859738,112090.0,112080.0,0.47232603]
[1760203086533,0.0891496,112070.0,112060.0,0.84218782]
[1760203086728,0.4859896,112070.0,112060.0,0.48138782]
[1760203087030,0.8859896,112070.0,112060.0,0.00906179]
[1760203087427,0.1251976,112060.0,112050.0,0.47232603]
[1760203088534,0.1241976,112060.0,112050.0,0.47232603]
[1760203088928,0.4849976,112060.0,112050.0,0.47232603]
[1760203089128,0.1241976,112060.0,112050.0,0.48115654]
[1760203089330,0.8849976,112060.0,112050.0,0.48115654]
[1760203090230,0.8849976,112060.0,112050.0,0.00883051]
[1760203090631,0.8849976,112060.0,112050.0,0.47232603]
[1760203090930,0.8849976,112060.0,112050.0,0.48130271]
[1760203094240,0.8849976,112060.0,112050.0,0.03037668]
[1760203094543,0.8849976,112060.0,112050.0,0.48130271]
[1760203097445,0.8849976,112060.0,112050.0,0.03037668]
[1760203097743,0.8849976,112060.0,112050.0,0.48130271]
[1760203098445,0.8721576,112060.0,112050.0,1.03521424]
[1760203098642,0.8721576,112060.0,112050.0,0.94604874]
[1760203098842,0.8853276,112060.0,112050.0,0.93222874]
[1760203100241,0.8853276,112060.0,112050.0,1.02139424]
[1760203100445,0.8853276,112060.0,112050.0,1.03521424]
[1760203100446,0.4232,112060.0,112050.0,1.03521424]
[1760203101046,0.0232,112060.0,112050.0,1.03521424]
[1760203101247,0.4627935,112070.0,112050.0,1.03521424]
[1760203101248,0.1118096,112070.0,112060.0,0.1244575]
[1760203101443,0.1249796,112070.0,112060.0,0.57538353]
[1760203101746,0.1118096,112070.0,112060.0,0.57538353]
[1760203102349,0.1128096,112070.0,112060.0,0.57538353]
[1760203102739,0.02366,112070.0,112060.0,0.57538353]
[1760203102944,0.001,112070.0,112060.0,1.78710956]
[1760203103343,0.001,112070.0,112060.0,0.8852575]
[1760203103540,0.001,112070.0,112060.0,1.78710956]
[1760203104249,0.02266,112080.0,112070.0,0.1244426]
[1760203104447,0.02266,112080.0,112070.0,0.57536863]
[1760203105045,0.02266,112080.0,112070.0,0.93616863]
[1760203105245,0.02266,112080.0,112070.0,0.57536863]
[1760203105749,0.02366,112080.0,112070.0,0.57536863]
[1760203110153,0.1128016,112080.0,112070.0,0.57536863]
[1760203111155,0.1128016,112080.0,112070.0,0.48622603]
[1760203111351,0.1259716,112080.0,112070.0,0.48622603]
[1760203112153,0.4867716,112080.0,112070.0,0.47240603]
[1760203114454,0.48631079,112080.0,112070.0,0.47240603]
[1760203117055,0.48631079,112080.0,112070.0,0.02148]
[1760203117256,0.48631079,112080.0,112070.0,0.47240603]
[1760203118558,0.48631079,112080.0,112070.0,0.45092603]
[1760203118856,0.48631079,112080.0,112070.0,0.47240603]
[1760203119657,0.12551079,112080.0,112070.0,0.47240603]
[1760203119858,0.48631079,112080.0,112070.0,0.47240603]
[1760203121263,0.48631079,112080.0,112070.0,0.57486573]
[1760203121561,0.48631079,112080.0,112070.0,0.02148]
[1760203121861,0.48631079,112080.0,112070.0,0.47240603]
[1760203125262,0.48631079,112080.0,112050.0,0.03010668]
[1760203125263,0.1254377,112060.0,112050.0,0.03010668]
[1760203125560,0.4862377,112060.0,112050.0,0.48103271]
[1760203129568,0.4862377,112060.0,112050.0,0.03010668]
[1760203130269,0.4724377,112060.0,112050.0,0.04341668]
[1760203130570,0.4862377,112060.0,112050.0,0.04341668]
[1760203132270,0.4862377,112060.0,112050.0,0.4444959]
[1760203132669,0.4862377,112060.0,112050.0,0.5336615]
[1760203133067,0.4724377,112060.0,112050.0,0.5336615]
[1760203134168,0.3608,112070.0,112050.0,0.8444959]
[1760203134371,0.4724332,112070.0,112060.0,0.52467692]
[1760203135374,0.1116332,112070.0,112060.0,0.52467692]
[1760203140374,0.1254332,112070.0,112060.0,0.03444]
[1760203140570,0.1254332,112070.0,112060.0,0.02113]
[1760203140873,0.4862332,112070.0,112060.0,0.02113]
[1760203141067,0.0891577,112060.0,112050.0,0.02228668]
[1760203141265,0.4862377,112060.0,112050.0,0.13258228]
[1760203141474,0.4862377,112060.0,112050.0,0.04341668]
[1760203141678,0.4862377,112060.0,112050.0,0.03010668]
[1760203143080,0.4724377,112060.0,112050.0,0.13258228]
[1760203143473,0.4724377,112060.0,112050.0,0.5336615]
[1760203144279,0.1116377,112060.0,112050.0,0.5336615]
[1760203145181,0.4724377,112060.0,112050.0,0.04341668]
[1760203145481,0.4862377,112060.0,112050.0,0.04341668]
[1760203146875,0.4862377,112060.0,112050.0,0.13258208]
[1760203147178,0.1116377,112060.0,112050.0,0.13258208]
[1760203147982,0.1116377,112060.0,112050.0,0.8944613]
[1760203149383,0.1116377,112060.0,112050.0,0.5336613]
[1760203150178,0.02248,112060.0,112050.0,0.8944613]
[1760203152384,0.1116375,112060.0,112050.0,0.8944613]
[1760203156182,0.1116375,112060.0,112050.0,0.5336613]
[1760203157681,0.4724375,112060.0,112050.0,0.5336613]
[1760203159180,0.1116375,112060.0,112050.0,0.13258208]
[1760203160287,0.1116375,112060.0,112050.0,0.5336613]
[1760203160585,0.1249075,112060.0,112050.0,0.13258208]
[1760203160786,0.4857075,112060.0,112050.0,0.13258208]
[1760203163086,0.4724375,112060.0,112050.0,0.13258208]
[1760203163288,0.4724375,112060.0,112050.0,0.5336613]
[1760203164186,0.1116375,112060.0,112050.0,0.5336613]
[1760203175195,0.4844116,112080.0,112070.0,0.02266]
[1760203175402,0.4844116,112080.0,112070.0,0.03558]
[1760203175797,0.4844116,112080.0,112070.0,0.02266]
[1760203176303,0.4854116,112080.0,112070.0,0.02266]
[1760203176499,0.01327,112070.0,112060.0,0.02266]
[1760203176700,0.4845195,112070.0,112060.0,0.02266]
[1760203178703,0.4855195,112070.0,112060.0,0.03558]
[1760203178904,0.1247195,112070.0,112060.0,0.03558]
[1760203179702,0.4855195,112070.0,112060.0,0.03558]
[1760203182205,0.1114495,112070.0,112060.0,0.52581672]
[1760203189815,0.1114495,112070.0,112060.0,0.43665922]
[1760203191415,0.1114495,112070.0,112060.0,0.48662076]
[1760203191815,0.1114495,112070.0,112060.0,0.03558]
[1760203192009,0.1243495,112070.0,112060.0,0.02266]
[1760203192215,0.1243495,112070.0,112060.0,0.47370076]
[1760203192516,0.1243495,112070.0,112060.0,0.48736076]
[1760203195315,0.1243495,112070.0,112060.0,0.02266]
[1760203195515,0.1243495,112070.0,112060.0,0.47370076]
[1760203195710,0.1243495,112070.0,112060.0,0.48736076]
[1760203196420,0.1114495,112070.0,112060.0,0.48736076]
[1760203196914,0.1114495,112070.0,112060.0,0.57651826]
[1760203197218,0.001,112070.0,112060.0,1.33731826]
[1760203199022,0.4726353,112080.0,112070.0,0.1244195]
[1760203199213,0.4726353,112080.0,112070.0,0.57546026]
[1760203200716,0.4736353,112080.0,112070.0,0.57546026]
[1760203200922,0.1128353,112080.0,112070.0,0.57546026]
[1760203201719,0.1128353,112080.0,112070.0,0.1244195]
[1760203201925,0.1128353,112080.0,112070.0,0.57546026]
[1760203205127,0.1257353,112080.0,112070.0,0.48631076]
[1760203205525,0.93757606,112080.0,112070.0,0.03527]
[1760203205731,1.33757606,112080.0,112070.0,0.02161]
[1760203209231,0.1247395,112070.0,112060.0,0.47265076]
[1760203209430,0.93658026,112070.0,112060.0,0.47265076]
[1760203210327,0.93658026,112070.0,112060.0,0.02161]
[1760203210537,0.4855395,112070.0,112060.0,0.48631076]
[1760203210832,0.4855395,112070.0,112060.0,0.57546826]
[1760203212130,0.4865395,112070.0,112060.0,0.57546826]
[1760203212334,0.1257395,112070.0,112060.0,0.57546826]
[1760203213029,0.03659,112070.0,112060.0,0.57546826]
[1760203213234,0.02369,112070.0,112060.0,0.57546826]
[1760203213835,0.001,112070.0,112060.0,1.33626826]
[1760203214940,0.45384626,112090.0,112080.0,0.03402]
[1760203215133,0.45384626,112090.0,112080.0,0.48506076]
[1760203215441,0.45384626,112090.0,112080.0,0.57420236]
[1760203217136,0.45484626,112090.0,112080.0,0.57420236]
[1760203217937,0.45384626,112090.0,112080.0,0.57420236]
[1760203218239,0.45484626,112090.0,112080.0,0.57420236]
[1760203218638,0.09404626,112090.0,112080.0,0.57420236]
[1760203218833,0.10712626,112090.0,112080.0,0.02117]
[1760203219040,0.10712626,112090.0,112080.0,0.47221076]
[1760203219342,0.10712626,112090.0,112080.0,0.57420236]
[1760203219741,0.09404626,112090.0,112080.0,0.57420236]
[1760203220041,0.10712626,112090.0,112080.0,0.48506076]
[1760203223144,0.09404626,112090.0,112080.0,0.57420236]
[1760203223343,0.09404626,112090.0,112080.0,0.1231616]
[1760203223543,0.10712626,112090.0,112080.0,0.1103116]
[1760203223744,0.10712626,112090.0,112080.0,0.56135236]
[1760203224146,0.64730062,112090.0,112080.0,0.47221076]
[1760203224844,0.64730062,112090.0,112080.0,0.02117]
[1760203226649,0.19625986,112090.0,112080.0,0.1103116]
[1760203226845,0.10712626,112090.0,112080.0,0.1231616]
[1760203227343,0.10712626,112090.0,112080.0,0.57420236]
[1760203227539,0.09404626,112090.0,112080.0,0.57420236]
[1760203235853,0.09404626,112090.0,112080.0,0.93500236]
[1760203237053,0.07111626,112090.0,112080.0,1.38604312]
[1760203238955,0.07111626,112090.0,112080.0,1.78604312]
[1760203241050,0.07111626,112090.0,112080.0,1.33500236]
[1760203242355,0.09217626,112090.0,112080.0,0.93500236]
[1760203244858,0.09217626,112090.0,112080.0,0.57420236]
[1760203245157,0.09217626,112090.0,112080.0,0.1231616]
[1760203245360,0.09217626,112090.0,112080.0,0.57420236]
[1760203246056,0.09217626,112090.0,112080.0,0.93500236]
[1760203252362,0.09217626,112090.0,112080.0,0.4839616]
[1760203252563,0.09217626,112090.0,112080.0,0.93500236]
[1760203253562,0.09217626,112090.0,112080.0,0.4839616]
[1760203255764,0.07111626,112090.0,112080.0,0.4839616]
[1760203255961,0.09217626,112090.0,112080.0,0.4839616]
[1760203258065,0.07111626,112090.0,112080.0,0.4839616]
[1760203258265,0.07111626,112090.0,112080.0,0.88481238]
[1760203260271,0.07111626,112090.0,112080.0,1.28481238]
[1760203260473,0.001,112090.0,112080.0,1.28481238]
[1760203260674,0.38186,112120.0,112110.0,0.1242377]
[1760203260968,0.45452361,112120.0,112110.0,0.1242377]
[1760203261368,0.54363341,112120.0,112110.0,0.1242377]
[1760203261773,0.1240277,112110.0,112100.0,0.1111247]
[1760203261973,0.88567848,112110.0,112100.0,0.1111247]
[1760203262176,0.4848277,112110.0,112100.0,0.1111247]
[1760203262376,0.39571,112110.0,112100.0,0.1111247]
[1760203262577,0.39571,112110.0,112100.0,0.1242447]
[1760203263378,0.39671,112110.0,112100.0,0.1242447]
[1760203264780,0.39671,112110.0,112100.0,0.13296609]
[1760203265283,0.39671,112110.0,112100.0,0.11984609]
[1760203265780,0.03591,112110.0,112100.0,0.13296609]
[1760203267182,0.39671,112110.0,112100.0,0.13296609]
[1760203267384,0.38286,112110.0,112100.0,0.13296609]
[1760203269583,0.02206,112110.0,112100.0,0.13296609]
[1760203271588,0.0357,112110.0,112100.0,0.1118547]
[1760203272189,0.3965,112110.0,112100.0,0.1118547]
[1760203273188,0.3965,112110.0,112100.0,0.12071126]
[1760203273783,0.3965,112110.0,112100.0,0.12070356]
[1760203273784,0.0357,112110.0,112100.0,0.12070356]
[1760203274290,0.0357,112110.0,112100.0,0.48150356]
[1760203274788,0.001,112110.0,112100.0,1.28235434]
[1760203280396,0.01385,112140.0,112110.0,0.0961689]
[1760203280600,0.03621,112140.0,112130.0,0.42358078]
[1760203280900,0.19621383,112140.0,112130.0,0.02273]
[1760203281399,0.125295,112140.0,112130.0,0.02273]
[1760203281600,0.126295,112140.0,112130.0,0.111823]
[1760203281893,0.036,112170.0,112160.0,0.1117991]
[1760203282088,0.036,112170.0,112160.0,0.02273]
[1760203282493,0.036,112170.0,112160.0,0.42358078]
[1760203282693,0.1062515,112170.0,112160.0,0.42358078]
[1760203282895,0.1062515,112170.0,112160.0,0.02273]
[1760203283095,0.1062515,112170.0,112160.0,0.42358078]
[1760203283296,0.1062515,112170.0,112160.0,0.51264988]
[1760203284092,0.1062515,112170.0,112160.0,0.87344988]
[1760203284498,0.0926115,112170.0,112160.0,0.88629988]
[1760203284798,0.37444,112180.0,112170.0,0.1249112]
[1760203284799,0.38316,112180.0,112170.0,0.1249112]
[1760203284997,0.38316,112180.0,112170.0,0.52576198]
[1760203285397,0.10834745,112190.0,112180.0,0.1188433]
[1760203285592,0.10834745,112190.0,112180.0,0.88049408]
[1760203285798,0.07234745,112190.0,112180.0,1.28049408]
[1760203285993,0.01364,112200.0,112180.0,1.28049408]
[1760203286303,0.036,112200.0,112190.0,0.51968608]
[1760203286504,0.1250374,112200.0,112190.0,0.43064078]
[1760203287298,0.1250374,112200.0,112190.0,0.42358078]
[1760203289304,0.19759933,112200.0,112190.0,0.42358078]
[1760203290304,0.55839933,112200.0,112190.0,0.02273]
[1760203290602,0.55839933,112200.0,112190.0,0.42358078]
[1760203293606,0.1250453,112190.0,112180.0,0.78438078]
[1760203293905,0.1250453,112190.0,112180.0,0.02273]
[1760203294110,0.1250612,112170.0,112160.0,0.79315717]
[1760203294610,0.1250612,112170.0,112160.0,0.03150639]
[1760203296708,0.4858612,112170.0,112160.0,0.03150639]
[1760203297911,0.4858612,112170.0,112160.0,0.00877639]
[1760203298102,1.28671198,112170.0,112160.0,0.00877639]
[1760203298406,1.28671198,112170.0,112140.0,0.38353]
[1760203298407,0.1250771,112150.0,112140.0,0.38353]
[1760203298909,0.1250771,112150.0,112140.0,0.39225269]
[1760203299109,0.1250771,112150.0,112140.0,0.79310347]
[1760203299712,0.1250771,112150.0,112140.0,0.77037347]
[1760203300305,0.1250771,112150.0,112140.0,0.77137347]
[1760203300813,0.19609651,112150.0,112140.0,0.41057347]
[1760203301009,0.19609651,112150.0,112140.0,0.00972269]
[1760203301214,0.59609651,112150.0,112140.0,0.00972269]
[1760203302005,0.95689651,112150.0,112140.0,0.00972269]
[1760203302412,0.55689651,112150.0,112140.0,0.00972269]
[1760203302714,0.55689651,112150.0,112140.0,0.001]
[1760203303316,0.124495,112140.0,112130.0,0.42378078]
[1760203304615,0.124495,112140.0,112130.0,0.43270021]
[1760203307921,0.485295,112140.0,112130.0,0.43270021]
[1760203310616,0.485295,112140.0,112130.0,0.00891943]
[1760203310922,0.485295,112140.0,112130.0,0.02293]
[1760203311220,0.485295,112140.0,112130.0,0.42378078]
[1760203311621,0.485295,112140.0,112130.0,0.43268476]
[1760203312625,0.124495,112140.0,112130.0,0.43268476]
[1760203313321,0.124495,112140.0,112130.0,0.03183398]
[1760203313625,0.124495,112140.0,112130.0,0.43268476]
[1760203314626,0.124495,112140.0,112130.0,0.52177776]
[1760203315524,0.124495,112140.0,112130.0,0.57134687]
[1760203318324,0.124495,112140.0,112130.0,0.93214687]
[1760203318624,0.124495,112140.0,112130.0,1.38256676]
[1760203318822,0.02252,112140.0,112130.0,1.79552676]
[1760203319325,0.03541,112140.0,112130.0,1.79552676]
[1760203319626,0.124495,112140.0,112130.0,1.33214687]
[1760203323132,0.124495,112140.0,112130.0,0.97134687]
[1760203327041,0.03541,112140.0,112130.0,0.97134687]
[1760203327244,0.02252,112140.0,112130.0,1.43472676]
[1760203327444,0.02252,112140.0,112130.0,1.79552676]
[1760203327838,0.03541,112140.0,112130.0,1.78256676]
[1760203330341,0.02252,112140.0,112130.0,1.39552676]
[1760203330545,0.02252,112140.0,112130.0,1.52552676]
[1760203331341,0.09255941,112150.0,112140.0,0.111315]
[1760203331537,0.02154,112160.0,112150.0,0.1252771]
[1760203331745,0.02154,112160.0,112150.0,0.68569699]
[1760203331939,0.03538,112160.0,112150.0,0.68569699]
[1760203332341,0.02154,112160.0,112150.0,1.04649699]
[1760203332642,0.02154,112180.0,112170.0,0.1242512]
[1760203332837,0.39618,112190.0,112180.0,0.1252532]
[1760203333050,0.39618,112190.0,112180.0,0.69567309]
[1760203333746,0.38234,112190.0,112180.0,0.69567309]
[1760203334142,0.02154,112190.0,112180.0,0.69567309]
[1760203334549,0.02154,112190.0,112180.0,1.05647309]
[1760203334743,0.01384,112200.0,112190.0,0.0890453]
[1760203334945,0.03538,112200.0,112190.0,0.70169519]
[1760203335345,0.03538,112200.0,112190.0,0.71043551]
[1760203335645,0.1244174,112200.0,112190.0,0.71043551]
[1760203336144,0.19522708,112200.0,112190.0,0.71043551]
[1760203337648,0.09234968,112200.0,112190.0,0.72440551]
[1760203337951,0.07080968,112200.0,112190.0,1.5356254]
[1760203338442,0.1244153,112210.0,112200.0,0.1112674]
[1760203338648,0.1244153,112210.0,112200.0,1.14210718]
[1760203339553,0.03538,112210.0,112200.0,1.14210718]
[1760203340049,0.1059199,112210.0,112200.0,1.14210718]
[1760203341652,0.1949493,112210.0,112200.0,1.05306978]
[1760203341853,0.1949493,112210.0,112200.0,0.60264989]
[1760203342053,0.1059199,112210.0,112200.0,0.60264989]
[1760203342249,0.1059199,112210.0,112200.0,0.15223]
[1760203342553,1.40616919,112210.0,112200.0,0.13]
[1760203343349,0.9557493,112210.0,112200.0,0.13]
[1760203343647,0.8667199,112210.0,112200.0,0.60264989]
[1760203343852,0.5557493,112210.0,112200.0,0.60264989]
[1760203344347,0.0890453,112190.0,112180.0,0.21]
[1760203344552,0.0890612,112170.0,112160.0,0.09]
[1760203344747,0.0890691,112160.0,112150.0,0.01397]
[1760203344950,0.0890691,112160.0,112150.0,0.12]
[1760203344951,1.30028899,112160.0,112150.0,0.12]
[1760203346652,1.30028899,112160.0,112150.0,0.13397]
[1760203347054,1.37088171,112160.0,112150.0,0.13397]
[1760203347655,1.38981359,112160.0,112150.0,0.13397]
[1760203348253,1.38981359,112160.0,112150.0,0.2452771]
[1760203348254,0.43139272,112160.0,112150.0,0.2452771]
[1760203348556,0.43139272,112160.0,112150.0,0.1562]
[1760203354451,0.52046182,112160.0,112150.0,0.1562]
[1760203354657,0.92046182,112160.0,112150.0,0.13397]
[1760203361467,0.83139272,112160.0,112150.0,0.15526]
[1760203362362,0.52046182,112160.0,112150.0,0.15526]
[1760203364864,0.43139272,112160.0,112150.0,0.15526]
[1760203365264,0.52046182,112160.0,112150.0,0.15526]
[1760203365663,0.52046182,112160.0,112150.0,0.13397]
[1760203366068,0.52046182,112160.0,112150.0,0.15663]
[1760203366363,0.52046182,112160.0,112150.0,0.13397]
[1760203367364,0.52046182,112160.0,112150.0,0.15663]
[1760203369466,0.97095799,112160.0,112150.0,0.15663]
[1760203370467,0.97095799,112160.0,112150.0,0.2457071]
[1760203370664,0.88188889,112160.0,112150.0,0.2457071]
[1760203372163,0.43139272,112160.0,112150.0,0.2457071]
[1760203372368,0.43139272,112160.0,112150.0,0.69620327]
[1760203372566,0.43139272,112160.0,112150.0,0.2457071]
[1760203373368,0.43139272,112160.0,112150.0,0.69620327]
[1760203375170,0.43139272,112160.0,112150.0,0.2457071]
[1760203377965,0.52046182,112160.0,112150.0,0.15663]
[1760203378167,0.52046182,112160.0,112150.0,0.13397]
[1760203378567,0.52046182,112160.0,112150.0,0.15663]
[1760203379371,0.92085904,112160.0,112150.0,0.13397]
[1760203379872,0.52046182,112160.0,112150.0,0.13397]
[1760203384076,0.92085904,112160.0,112150.0,0.13397]
[1760203385175,0.52046182,112160.0,112150.0,0.13397]
[1760203385576,0.92085904,112160.0,112150.0,0.13397]
[1760203387081,0.92085904,112160.0,112150.0,0.15663]
[1760203387273,0.92085904,112160.0,112150.0,0.13397]
[1760203387673,0.52046182,112160.0,112150.0,0.15663]
[1760203388081,0.52046182,112160.0,112150.0,0.13397]
[1760203388577,0.92085904,112160.0,112150.0,0.13397]
[1760203390777,0.52046182,112160.0,112150.0,0.15663]
[1760203391876,0.43139272,112160.0,112150.0,0.15663]
[1760203392081,0.52046182,112160.0,112150.0,0.15663]
[1760203393484,0.43139272,112160.0,112150.0,1.04610432]
[1760203394687,0.43139272,112160.0,112150.0,0.6457071]
[1760203395582,0.07059272,112160.0,112150.0,1.40690432]
[1760203395784,0.3608,112180.0,112160.0,0.0890636]
[1760203395988,0.3608,112180.0,112170.0,0.03422]
[1760203396290,0.3608,112180.0,112170.0,0.15422]
[1760203396486,0.3608,112180.0,112170.0,0.2432812]
[1760203396788,0.3608,112180.0,112170.0,0.25240624]
[1760203397284,0.43152256,112180.0,112170.0,0.25240624]
[1760203400285,0.43152256,112180.0,112170.0,0.16334504]
[1760203400588,0.43152256,112180.0,112170.0,0.15422]
[1760203400589,0.52057586,112180.0,112170.0,0.15422]
[1760203409501,0.92097308,112180.0,112170.0,0.15422]
[1760203411297,0.92097308,112180.0,112170.0,0.13317]
[1760203411502,1.32097308,112180.0,112170.0,0.13317]
[1760203412903,0.0890612,112170.0,112160.0,0.01317]
[1760203413203,0.85025842,112170.0,112160.0,0.05317]
[1760203413805,0.4498612,112170.0,112160.0,0.05317]
[1760203413999,0.85025842,112170.0,112160.0,0.05317]
[1760203416606,1.25025842,112170.0,112160.0,0.04]
[1760203417204,1.25025842,112170.0,112160.0,0.05317]
[1760203421503,0.4498612,112170.0,112160.0,0.05317]
[1760203421707,0.85025842,112170.0,112160.0,0.07422]
[1760203424308,0.52057726,112180.0,112170.0,0.035]
[1760203424511,0.52057726,112180.0,112170.0,0.155]
[1760203426413,0.43152256,112180.0,112170.0,0.2440612]
[1760203429009,0.07072256,112180.0,112170.0,0.2440612]
[1760203429317,0.4498459,112190.0,112180.0,0.035]
[1760203429516,0.4498459,112190.0,112180.0,0.165]
[1760203429719,0.4498459,112190.0,112180.0,1.05445052]
[1760203429720,0.07157818,112190.0,112180.0,1.05445052]
[1760203430016,0.3608,112200.0,112190.0,0.1240453]
[1760203430206,0.3608,112200.0,112190.0,0.2440453]
[1760203433113,0.94597924,112200.0,112170.0,0.2]
[1760203433416,0.1136391,112160.0,112150.0,0.17886363]
[1760203433613,0.02108,112150.0,112140.0,0.40039722]
[1760203433810,0.02108,112150.0,112140.0,0.89528222]
[1760203434007,0.03474,112150.0,112140.0,0.89528222]
[1760203434917,0.03474,112150.0,112140.0,0.494885]
[1760203435518,0.03474,112150.0,112140.0,0.94534253]
[1760203435814,0.07218097,112150.0,112140.0,1.79580006]
[1760203436015,0.3608,112160.0,112140.0,1.79580006]
[1760203436218,0.38188,112160.0,112150.0,0.57453463]
[1760203436516,0.38188,112160.0,112150.0,0.70453463]
[1760203437018,0.39554,112160.0,112150.0,0.70453463]
[1760203438018,0.38188,112160.0,112150.0,0.70453463]
[1760203438419,0.02108,112160.0,112150.0,0.70453463]
[1760203439210,0.38288,112160.0,112150.0,0.70453463]
[1760203440121,0.38288,112160.0,112150.0,0.2540771]
[1760203440420,0.39654,112160.0,112150.0,0.2540771]
[1760203440621,0.46647711,112160.0,112150.0,0.70453463]
[1760203440821,0.45281711,112160.0,112150.0,0.70453463]
[1760203441319,0.55554621,112160.0,112150.0,0.61545753]
[1760203441823,0.55654621,112160.0,112150.0,0.61545753]
[1760203442022,0.55654621,112160.0,112150.0,0.60179753]
[1760203442722,0.55654621,112160.0,112150.0,0.15134]
[1760203443414,0.55654621,112160.0,112150.0,0.60179753]
[1760203443923,0.55654621,112160.0,112150.0,0.15134]
[1760203444222,1.40700374,112160.0,112150.0,0.13]
[1760203444422,0.95654621,112160.0,112150.0,0.13]
[1760203444622,1.40700374,112160.0,112150.0,0.13]
[1760203444825,1.40700374,112160.0,112150.0,0.15134]
[1760203445117,0.55654621,112160.0,112150.0,0.15134]
[1760203445318,0.55654621,112160.0,112150.0,0.60179753]
[1760203445717,0.55654621,112160.0,112150.0,0.15134]
[1760203446415,1.00700374,112160.0,112150.0,0.15134]
[1760203446615,0.46747711,112160.0,112150.0,0.69087463]
[1760203446814,0.46747711,112160.0,112150.0,0.60179753]
[1760203447122,0.46747711,112160.0,112150.0,0.61545753]
[1760203448527,0.55654621,112160.0,112150.0,0.61545753]
[1760203450028,0.54288621,112160.0,112150.0,0.61545753]
[1760203450529,0.45381711,112160.0,112150.0,0.70453463]
[1760203450717,0.45381711,112160.0,112150.0,1.10453463]
[1760203450923,0.09301711,112160.0,112150.0,1.46533463]
[1760203452029,0.09201711,112160.0,112150.0,1.0148771]
[1760203452329,0.09201711,112160.0,112150.0,1.10453463]
[1760203452828,0.10472711,112160.0,112150.0,0.6540771]
[1760203453031,0.46552711,112160.0,112150.0,1.10453463]
[1760203454032,0.46652711,112160.0,112150.0,1.10453463]
[1760203455138,0.46652711,112160.0,112150.0,0.70453463]
[1760203457335,1.40605374,112160.0,112150.0,0.15134]
[1760203457641,1.40605374,112160.0,112150.0,0.13]
[1760203458438,0.95559621,112160.0,112150.0,0.13]
[1760203458638,1.40605374,112160.0,112150.0,0.13]
[1760203460742,1.31698464,112160.0,112150.0,0.13]
[1760203461142,0.86652711,112160.0,112150.0,0.2401671]
[1760203461342,1.31698464,112160.0,112150.0,0.2401671]
[1760203462045,0.45381711,112160.0,112150.0,0.70353463]
[1760203462648,0.09301711,112160.0,112150.0,0.70353463]
[1760203463150,0.09301711,112160.0,112150.0,1.10353463]
[1760203463350,0.07193711,112160.0,112150.0,1.10353463]
[1760203463549,0.06993711,112160.0,112150.0,1.10353463]
[1760203463849,0.001,112160.0,112150.0,1.10353463]
[1760203464550,0.001,112160.0,112150.0,1.46433463]
[1760203464751,0.02231,112170.0,112160.0,0.1230691]
[1760203465052,0.02231,112170.0,112160.0,0.84352663]
[1760203465655,0.09354473,112170.0,112160.0,0.84352663]
[1760203465945,0.02231,112170.0,112160.0,0.84352663]
[1760203467449,0.02331,112170.0,112160.0,0.84352663]
[1760203469147,0.09433099,112170.0,112160.0,0.84352663]
[1760203470956,0.07202099,112170.0,112160.0,0.84352663]
[1760203471256,0.09433099,112170.0,112160.0,0.84352663]
[1760203473355,0.45513099,112170.0,112160.0,0.84352663]
[1760203478054,0.45513099,112170.0,112160.0,0.75445753]
[1760203478358,1.00735972,112170.0,112160.0,0.3801591]
[1760203478554,1.40735972,112170.0,112160.0,0.27]
[1760203480962,0.1244076,112150.0,112140.0,0.15]
[1760203481156,0.93566513,112150.0,112140.0,0.22]
[1760203481358,0.01351,112130.0,112120.0,0.37]
[1760203481564,0.48633753,112130.0,112120.0,0.08]
[1760203481758,0.48633753,112130.0,112120.0,0.10112]
[1760203482061,0.48633753,112130.0,112120.0,0.02987872]
[1760203482262,0.48633753,112130.0,112120.0,0.25987872]
[1760203482461,0.48633753,112130.0,112120.0,0.34897962]
[1760203483762,0.48733753,112130.0,112120.0,0.34897962]
[1760203484361,0.84813753,112130.0,112120.0,0.34897962]
[1760203484563,0.92085881,112130.0,112120.0,0.34897962]
[1760203484762,0.47040128,112130.0,112120.0,0.34897962]
[1760203484963,0.92085881,112130.0,112120.0,0.34897962]
[1760203487165,1.00995181,112130.0,112120.0,0.23]
[1760203487566,1.40995181,112130.0,112120.0,0.23]
[1760203487959,0.0891009,112120.0,112110.0,9.656e-05]
[1760203488163,1.78669596,112120.0,112110.0,0.15009656]
[1760203488864,1.33623843,112120.0,112110.0,0.15009656]
[1760203490058,1.33723843,112120.0,112110.0,0.15009656]
[1760203490264,0.1249968,112100.0,112090.0,0.29]
[1760203490460,0.1250127,112080.0,112070.0,0.28]
[1760203490660,0.02237,112050.0,112040.0,0.1236128]
[1760203490859,0.47282753,112050.0,112040.0,0.3636128]
[1760203491264,0.47292409,112050.0,112040.0,0.3636128]
[1760203491664,0.83372409,112050.0,112040.0,0.27445]
[1760203491869,0.84623409,112050.0,112040.0,0.3502845]
[1760203492168,0.84623409,112050.0,112040.0,0.37236205]
[1760203492568,0.84623409,112050.0,112040.0,0.37336205]
[1760203493269,0.48543409,112050.0,112040.0,0.37336205]
[1760203493466,0.03497656,112050.0,112040.0,0.37336205]
[1760203495373,0.02146656,112050.0,112040.0,0.37336205]
[1760203495671,9.656e-05,112050.0,112040.0,1.60430148]
[1760203495971,0.39668,112080.0,112070.0,0.02112]
[1760203496166,0.4858132,112080.0,112070.0,0.27445]
[1760203496574,0.02237,112080.0,112070.0,0.3635907]
[1760203497273,0.02337,112080.0,112070.0,0.7635907]
[1760203499576,0.001,112080.0,112070.0,1.1243907]
[1760203502578,0.001,112080.0,112070.0,1.54437612]
[1760203502778,0.38317,112110.0,112100.0,0.1235668]
[1760203503079,0.4722789,112110.0,112100.0,0.3435668]
[1760203503278,0.1114789,112110.0,112100.0,0.3435668]